bitfinex/quotes_ETHUSD_20220310
["timestamp","ask_amount","ask_price","bid_price","bid_amount"]
[1646939017148,0.00252741,2597.9,2597.8,2.17016671]
[1646939017348,1.27338732,2598.6,2597.8,2.17016671]
[1646939017548,1.27338732,2598.6,2597.8,1.20764671]
[1646939017750,1.2253,2598.6,2597.9,0.08903854]
[1646939017948,0.00366295,2598.0,2597.9,0.08903854]
[1646939018152,0.00366295,2598.0,2597.9,12.85903854]
[1646939018648,0.65033133,2598.7,2597.9,1.08903854]
[1646939018850,0.00366291,2598.1,2598.0,0.07436571]
[1646939019252,0.00366291,2598.1,2597.8,0.01086127]
[1646939019859,0.04974278,2598.4,2597.8,0.01086127]
[1646939020054,0.04339072,2598.6,2597.8,1.93561127]
[1646939020254,0.00366291,2598.1,2597.9,1.03411274]
[1646939021100,0.65292896,2598.5,2597.9,1.03411274]
[1646939021303,0.0036627,2598.1,2597.9,1.03411274]
[1646939021501,0.0036627,2598.1,2598.0,0.96237]
[1646939021702,0.0036627,2598.1,2598.0,1.26237]
[1646939021901,0.0036627,2598.1,2597.8,1.93561127]
[1646939022305,0.65292896,2598.3,2597.8,1.93561127]
[1646939022504,0.00366268,2598.2,2597.9,0.9140594]
[1646939022803,4.5150619,2598.2,2597.8,0.01086127]
[1646939023005,0.65292896,2598.1,2597.8,0.01086127]
[1646939023604,0.65292896,2598.1,2597.9,0.91577435]
[1646939023804,0.65659166,2598.1,2597.9,0.91577435]
[1646939024655,0.65292896,2598.1,2597.9,0.91577435]
[1646939025059,0.65659169,2598.1,2597.9,0.91577435]
[1646939025459,3.5,2598.0,2597.9,0.91577435]
[1646939025658,4.15292896,2598.0,2597.8,0.01086127]
[1646939025869,0.65292896,2597.9,2597.8,0.01086127]
[1646939026258,0.65292896,2597.9,2597.8,0.92564961]
[1646939026659,4.15292896,2597.9,2597.8,0.01086127]
[1646939027059,0.65292896,2597.9,2597.8,0.91606662]
[1646939027258,0.65292896,2597.9,2597.8,0.01086127]
[1646939027910,0.65659175,2598.0,2597.8,0.01086127]
[1646939028100,0.65659175,2598.0,2597.9,0.90509744]
[1646939028301,0.65292896,2598.0,2597.9,0.90509744]
[1646939028504,0.65659175,2598.0,2597.8,0.01086127]
[1646939028900,0.65659175,2598.0,2597.9,0.90574706]
[1646939029304,0.65659175,2598.0,2597.9,1.20574706]
[1646939029503,0.65292896,2598.3,2597.9,1.20574706]
[1646939029708,0.94781017,2598.7,2598.1,15.0]
[1646939030006,2.5,2603.1,2598.6,3.0]
[1646939030007,1.0,2599.7,2598.6,3.0]
[1646939030209,0.71201668,2599.7,2598.9,3.0]
[1646939030408,2.46902595,2600.7,2599.6,29.5]
[1646939030611,0.71021004,2600.5,2600.0,0.3]
[1646939030805,0.71021004,2600.6,2600.1,1.42453]
[1646939031011,0.66456411,2600.8,2600.2,4.22891876]
[1646939031307,0.64992858,2601.0,2600.4,20.0]
[1646939031510,2.81854006,2601.7,2600.6,0.06967211]
[1646939031759,0.3858,2601.6,2600.7,0.0837725]
[1646939031958,0.3858,2601.6,2600.7,3.5837725]
[1646939032162,0.3858,2601.6,2600.6,1.1922]
[1646939032163,0.3858,2601.6,2600.9,0.96136]
[1646939032361,0.3858,2601.6,2601.0,0.07023902]
[1646939032961,0.94074783,2601.7,2601.0,0.07023902]
[1646939032962,0.5765,2601.9,2601.0,0.07023902]
[1646939033361,0.3858,2601.7,2601.1,0.96139]
[1646939033566,0.1907,2602.1,2601.3,0.08615929]
[1646939033763,2.8775,2602.3,2601.4,0.06950174]
[1646939033962,1.19966255,2602.4,2601.4,3.56950174]
[1646939034162,1.19966255,2602.4,2601.5,0.07491754]
[1646939034563,0.3858,2602.3,2601.7,0.96106]
[1646939034766,5.3136,2602.7,2601.1,2.91808988]
[1646939034767,2.13683096,2601.6,2601.1,2.91808988]
[1646939034965,2.52263096,2601.6,2600.8,0.08563532]
[1646939035163,2.52263096,2601.6,2600.5,0.0895457]
[1646939035426,2.52263096,2601.6,2600.6,0.1922]
[1646939035620,2.13683096,2601.6,2600.7,1.92275]
[1646939035821,0.00391911,2601.3,2600.8,0.07971224]
[1646939036126,0.00391911,2601.3,2600.9,0.1922]
[1646939036721,1.1829,2602.2,2600.9,1.15346]
[1646939036722,0.3858,2602.0,2600.9,1.15346]
[1646939036922,0.00391916,2601.2,2600.9,0.46428473]
[1646939037723,0.00391916,2601.2,2601.0,0.08992209]
[1646939037924,1.5379,2602.1,2601.0,0.28212209]
[1646939037925,0.04396382,2601.9,2601.0,0.28212209]
[1646939038127,0.04396382,2601.9,2601.2,0.96123]
[1646939038326,0.01567433,2601.6,2601.2,4.65323]
[1646939038629,0.01567433,2601.6,2601.2,0.96123]
[1646939038826,0.01567433,2601.6,2601.2,4.76123]
[1646939039025,0.01567433,2601.6,2601.3,0.26734625]
[1646939039255,0.05262061,2602.3,2601.6,0.9611]
[1646939039455,0.05262061,2602.3,2601.7,3.5]
[1646939039456,0.01567364,2601.9,2601.7,3.5]
[1646939039658,0.01567364,2601.9,2601.5,3.5]
[1646939039856,0.01567364,2601.9,2601.4,1.9222]
[1646939040058,0.01567364,2601.9,2601.7,1.0]
[1646939040264,1.0,2603.1,2601.9,22.8858]
[1646939040462,9.4919,2603.8,2602.1,0.07419981]
[1646939040463,1.1264,2603.8,2602.1,0.07419981]
[1646939040659,0.04274344,2603.7,2602.2,1.0408]
[1646939040859,0.04274344,2603.7,2602.4,0.08858511]
[1646939041058,0.42854344,2603.7,2602.5,1.69978452]
[1646939041264,0.42854344,2603.7,2602.6,0.07873391]
[1646939041265,0.04799226,2603.6,2602.6,0.07873391]
[1646939041459,0.04799226,2603.6,2602.7,0.192]
[1646939041663,0.0085272,2604.1,2602.8,1.42357]
[1646939041862,0.0085272,2604.1,2603.5,1.0]
[1646939042060,0.0085272,2604.1,2603.6,4.22952906]
[1646939042260,0.0085272,2604.1,2603.7,0.07029676]
[1646939042459,1.06338837,2604.0,2603.7,0.07029676]
[1646939042911,0.0085272,2604.1,2603.4,0.07519446]
[1646939043413,0.0085272,2604.1,2603.5,0.192]
[1646939043611,0.0085272,2604.1,2603.5,0.28016768]
[1646939043818,0.0085272,2604.1,2603.5,0.58016768]
[1646939044011,0.0085272,2604.1,2603.6,0.08748374]
[1646939044214,0.00393665,2603.9,2603.6,1.04780374]
[1646939044416,0.00393665,2603.9,2603.7,0.07908609]
[1646939044915,0.909402,2603.9,2603.7,0.07908609]
[1646939045116,0.0085272,2604.1,2603.4,0.08757405]
[1646939045517,0.00393665,2603.9,2603.4,0.08757405]
[1646939046116,0.96455665,2603.9,2603.4,0.08757405]
[1646939046320,1.15518895,2603.8,2603.4,0.08757405]
[1646939046756,3.50393673,2603.8,2603.3,1.0]
[1646939046957,3.50393673,2603.8,2602.8,0.54256359]
[1646939046958,0.00393673,2603.8,2602.8,0.54256359]
[1646939047153,0.00393673,2603.8,2603.1,0.0799839]
[1646939047353,0.00393673,2603.8,2603.1,0.2719839]
[1646939047555,0.96059,2603.9,2603.1,0.2719839]
[1646939047755,0.0085272,2604.1,2603.3,0.07440382]
[1646939047957,0.00393334,2603.4,2603.3,0.07440382]
[1646939048156,0.00393334,2603.4,2603.3,0.83740382]
[1646939048357,0.00393334,2603.4,2603.3,2.53740382]
[1646939048759,0.0085272,2604.1,2603.3,3.53740382]
[1646939048964,0.0085272,2604.1,2603.5,0.96034]
[1646939049158,0.0085272,2604.1,2603.6,0.07111064]
[1646939049159,0.01573091,2603.9,2603.6,0.07111064]
[1646939049360,1.11751967,2603.9,2603.6,0.07111064]
[1646939049759,1.11751967,2603.9,2603.6,0.40437551]
[1646939049960,1.10178876,2603.9,2603.6,0.40437551]
[1646939050164,1.10178876,2603.9,2603.6,0.10437551]
[1646939050407,0.0039331,2603.9,2603.6,0.10437551]
[1646939051203,0.0085272,2604.1,2603.6,0.10437551]
[1646939051402,0.00386294,2603.9,2603.6,0.10437551]
[1646939052006,1.11919931,2603.8,2603.6,0.10437551]
[1646939052608,2.07977931,2603.8,2603.6,0.10437551]
[1646939053907,2.08364228,2603.8,2603.6,0.10437551]
[1646939054758,2.46557931,2603.8,2603.4,0.02935978]
[1646939054958,0.96058,2603.8,2603.4,0.02935978]
[1646939055159,0.9642335,2603.8,2603.4,0.02935978]
[1646939055958,0.96058,2603.8,2603.4,0.02935978]
[1646939056161,0.3943272,2604.1,2603.4,0.02935978]
[1646939056460,0.00365354,2603.7,2603.4,0.02935978]
[1646939056662,0.00365354,2603.7,2603.4,0.11923643]
[1646939057260,0.9688672,2604.1,2603.4,1.07957643]
[1646939057458,0.00365356,2603.7,2603.5,0.08624316]
[1646939057658,0.00365356,2603.7,2603.5,0.04338029]
[1646939058510,0.9688672,2604.1,2603.5,0.04338029]
[1646939058710,0.00368418,2603.7,2603.5,0.04338029]
[1646939059113,0.00368418,2603.7,2603.4,0.02935978]
[1646939059613,0.97568814,2603.8,2603.6,0.06391866]
[1646939060013,0.00368421,2603.7,2603.6,0.06391866]
[1646939060815,3.28241814,2603.8,2603.6,0.06391866]
[1646939061018,3.2861023,2603.8,2603.6,0.06391866]
[1646939061669,4.2467544,2603.8,2603.6,0.06391866]
[1646939062063,4.24307024,2603.8,2603.6,0.06391866]
[1646939062262,2.88526176,2603.8,2603.6,0.06391866]
[1646939062464,0.96409966,2603.8,2603.6,0.06391866]
[1646939062765,0.3858,2603.7,2603.6,0.06391866]
[1646939063366,0.0085272,2604.1,2603.6,0.06391866]
[1646939063566,0.01619238,2604.5,2603.9,0.01229739]
[1646939063768,0.01619238,2604.5,2604.4,0.01264722]
[1646939063969,0.00701276,2604.7,2604.5,0.07650361]
[1646939064168,0.07180278,2604.8,2604.6,0.463]
[1646939064169,0.01402553,2604.8,2604.6,0.463]
[1646939064368,0.01402553,2604.8,2604.7,0.08261926]
[1646939064574,0.01402553,2604.8,2604.6,12.80554447]
[1646939064767,0.05779414,2604.8,2604.6,2.33554447]
[1646939065168,0.01402553,2604.8,2604.7,1.0]
[1646939065615,0.05779414,2604.8,2604.7,1.0]
[1646939066418,0.05779414,2604.8,2604.7,17.4544772]
[1646939066619,0.05779414,2604.8,2604.7,13.9544772]
[1646939066819,0.05779414,2604.8,2604.7,2.1844772]
[1646939067022,0.05779414,2604.8,2604.7,3.1844772]
[1646939067222,0.05779414,2604.8,2604.7,2.1844772]
[1646939067420,0.05779414,2604.8,2604.7,3.1844772]
[1646939067818,0.05779414,2604.8,2604.7,14.9544772]
[1646939068019,0.00801113,2605.0,2604.7,14.8643]
[1646939068221,0.00622938,2605.1,2604.8,0.95987]
[1646939068420,0.00622938,2605.1,2604.9,0.08456891]
[1646939068620,0.00622938,2605.1,2605.0,1.0]
[1646939068821,0.00622938,2605.1,2605.0,17.033]
[1646939069020,0.00622938,2605.1,2605.0,18.033]
[1646939069265,0.00622938,2605.1,2605.0,15.533]
[1646939070264,0.00622938,2605.1,2605.0,16.4927443]
[1646939070465,0.04718187,2605.3,2605.2,11.77]
[1646939070664,0.00261905,2605.4,2605.3,11.77]
[1646939070866,0.00261905,2605.4,2605.3,0.463]
[1646939071065,0.00261905,2605.4,2605.3,1.463]
[1646939071264,0.99048632,2605.4,2605.3,1.0]
[1646939071464,0.00261905,2605.4,2605.3,1.0]
[1646939071867,0.00261905,2605.4,2605.3,1.3]
[1646939073218,0.00261905,2605.4,2605.3,13.07]
[1646939073422,0.0342466,2605.5,2605.4,46.77]
[1646939073621,4.66e-05,2605.5,2605.4,14.15969]
[1646939073823,4.66e-05,2605.5,2605.4,12.62731584]
[1646939074020,0.020305,2605.6,2605.4,16.12731584]
[1646939074222,0.4506721,2605.7,2605.6,10.19702584]
[1646939074424,0.4835765,2605.7,2605.6,10.66002584]
[1646939074624,0.4835765,2605.7,2605.6,11.66002584]
[1646939074828,0.4835765,2605.7,2605.6,12.66002584]
[1646939075029,0.0487284,2606.3,2606.1,21.0]
[1646939075223,0.0487284,2606.3,2606.1,10.34312584]
[1646939075224,0.01236772,2606.2,2606.1,10.34312584]
[1646939075424,0.0293922,2606.5,2606.3,9.23762584]
[1646939075627,0.42910224,2606.4,2606.3,1.0]
[1646939075825,0.42910224,2606.4,2606.3,3.763]
[1646939076024,0.42910224,2606.4,2606.3,2.763]
[1646939076224,0.42910224,2606.4,2606.3,3.763]
[1646939076423,0.42910224,2606.4,2606.3,3.72211]
[1646939076672,0.42910224,2606.4,2606.3,4.72211]
[1646939077760,0.42910224,2606.4,2606.3,3.03432629]
[1646939078156,0.42910224,2606.4,2606.3,5.53432629]
[1646939078357,0.37910224,2606.4,2606.3,15.80432629]
[1646939078557,0.37910224,2606.4,2606.3,4.03432629]
[1646939078758,0.37910224,2606.4,2606.3,3.03432629]
[1646939078960,0.37910224,2606.4,2606.3,1.95911]
[1646939079362,0.37910224,2606.4,2606.3,1.08648194]
[1646939082014,0.32910224,2606.4,2606.3,1.08648194]
[1646939082814,0.32910224,2606.4,2606.3,0.08648194]
[1646939083719,1.09077757,2606.4,2606.3,0.08648194]
[1646939083916,0.32910224,2606.4,2606.3,0.08648194]
[1646939085200,0.32910224,2606.4,2606.3,0.05807026]
[1646939086199,0.71490224,2606.4,2606.3,0.05807026]
[1646939086401,1.1003961,2606.4,2606.3,0.05807026]
[1646939086701,0.32910224,2606.4,2606.3,0.05807026]
[1646939089112,0.38192041,2606.4,2606.3,0.02964668]
[1646939091858,1.15325801,2606.4,2606.3,0.02964668]
[1646939092257,0.76772041,2606.4,2606.3,0.02964668]
[1646939092461,0.38192041,2606.4,2606.3,0.02964668]
[1646939092861,0.76772041,2606.4,2606.3,0.02964668]
[1646939093861,0.38192041,2606.4,2606.3,0.02964668]
[1646939094061,0.43086967,2606.4,2606.3,0.02964668]
[1646939094261,0.43086967,2606.4,2606.2,0.07021641]
[1646939094461,1.39037967,2606.4,2606.2,0.07021641]
[1646939096126,1.393779,2606.4,2606.2,0.07021641]
[1646939096324,1.393779,2606.4,2606.2,25.53321641]
[1646939096325,0.38531974,2606.4,2606.2,25.53321641]
[1646939096524,0.38531974,2606.4,2606.3,3.5]
[1646939096726,0.38531974,2606.4,2606.3,4.9059]
[1646939096925,0.0293922,2606.5,2606.4,27.5]
[1646939097125,0.0293922,2606.5,2606.4,1.6548]
[1646939097326,0.03158206,2606.5,2606.4,7.11404]
[1646939097524,0.0496306,2606.6,2606.4,7.11404]
[1646939097525,0.03121266,2606.6,2606.4,7.11404]
[1646939097729,0.03121266,2606.6,2606.5,3.6918]
[1646939098025,0.03121266,2606.6,2606.5,0.6548]
[1646939098223,0.03121266,2606.6,2606.5,3.5668]
[1646939100470,0.03121266,2606.6,2606.5,4.5155]
[1646939100872,0.03121266,2606.6,2606.5,4.3237]
[1646939101174,0.03121266,2606.6,2606.5,4.5155]
[1646939101775,0.03121266,2606.6,2606.5,4.70943037]
[1646939102176,0.0109132,2607.0,2606.8,28.5]
[1646939102372,0.06773061,2607.6,2606.9,16.71356072]
[1646939102574,0.06773061,2607.6,2606.9,16.90749109]
[1646939102575,0.06656514,2607.6,2606.9,16.90749109]
[1646939102772,0.06656514,2607.6,2607.0,12.1558]
[1646939103008,0.06656514,2607.6,2607.4,1.612]
[1646939103207,0.02703852,2607.7,2607.5,22.0]
[1646939103409,4.952e-05,2607.7,2607.6,13.19163]
[1646939103610,0.01744,2608.0,2607.8,11.77]
[1646939103813,0.01744,2608.0,2607.9,12.233]
[1646939104109,0.0479064,2608.5,2607.9,12.233]
[1646939104110,0.00116547,2608.6,2608.1,11.77]
[1646939104311,0.00116547,2608.6,2608.2,0.463]
[1646939104312,0.0118706,2608.6,2608.2,0.463]
[1646939104513,0.0118706,2608.6,2608.3,1.91668]
[1646939104713,0.0118706,2608.6,2608.4,0.463]
[1646939104917,0.05541638,2609.5,2608.4,0.463]
[1646939104918,1.9941208,2609.7,2608.7,29.0]
[1646939105118,0.005131,2609.4,2608.9,0.0123743]
[1646939105314,0.005131,2609.4,2609.0,0.463]
[1646939105512,0.005131,2609.4,2609.0,12.233]
[1646939105714,0.005131,2609.4,2609.0,14.8768]
[1646939105912,0.005131,2609.4,2609.0,2.421]
[1646939106113,0.005131,2609.4,2609.2,1.0]
[1646939106512,0.005131,2609.4,2609.3,0.463]
[1646939106784,0.005131,2609.4,2609.3,3.37917]
[1646939106984,0.00761678,2609.4,2609.3,3.37917]
[1646939107383,0.97555667,2609.4,2609.3,3.37917]
[1646939107584,0.97555667,2609.4,2609.3,1.463]
[1646939107786,0.0745522,2609.4,2609.3,1.463]
[1646939107984,0.0745522,2609.4,2609.3,1.0]
[1646939108785,1.17688889,2609.4,2609.3,1.0]
[1646939109689,1.17688889,2609.4,2609.1,0.95832]
[1646939109888,1.17688889,2609.4,2609.1,0.70832]
[1646939110092,1.13940061,2609.0,2608.5,1.47411853]
[1646939110294,4.8444,2608.9,2608.5,1.0]
[1646939110521,5.3227,2608.9,2607.6,4.08441632]
[1646939110724,3.0,2608.5,2607.7,0.95882]
[1646939110918,0.64423223,2608.8,2607.3,1.0]
[1646939110919,3.8858,2608.4,2607.3,1.0]
[1646939111117,0.3858,2608.2,2607.1,0.1917]
[1646939111319,1.9181214,2608.5,2606.6,1.92224762]
[1646939111320,0.3858,2607.9,2606.6,1.92224762]
[1646939111524,0.00116253,2608.1,2606.6,2.959618]
[1646939111719,0.00116253,2608.4,2606.9,1.0]
[1646939111918,0.00116253,2608.1,2607.1,0.07182888]
[1646939112121,0.00399415,2608.0,2607.2,2.38057]
[1646939112322,0.00399415,2608.0,2607.6,1.0]
[1646939112519,0.00399415,2608.0,2607.7,0.463]
[1646939112920,0.04582393,2608.2,2607.9,1.0]
[1646939113122,0.01476887,2608.1,2607.9,1.0]
[1646939113321,1.16162921,2608.0,2607.9,1.0]
[1646939113521,1.16162921,2608.0,2607.2,0.26920016]
[1646939113522,0.0496832,2607.9,2607.2,1.07526979]
[1646939113723,0.0496832,2607.9,2607.2,1.0]
[1646939113922,0.0496832,2607.9,2607.1,0.463]
[1646939114171,0.0496832,2607.9,2607.2,1.0]
[1646939114366,0.00369261,2608.1,2607.2,1.0]
[1646939114564,0.00369261,2608.1,2607.2,0.53741627]
[1646939114767,0.3858,2608.0,2607.5,1.0]
[1646939114967,0.05409488,2607.7,2607.0,2.87636]
[1646939115169,0.05409488,2607.7,2606.7,0.463]
[1646939115170,0.05068752,2607.6,2606.7,1.91821]
[1646939115865,0.05068752,2607.6,2607.1,1.0]
[1646939116267,0.95909,2607.5,2607.1,1.0]
[1646939116672,1.05847606,2607.4,2607.1,1.0]
[1646939116871,1.05847606,2607.4,2606.6,0.09151018]
[1646939116872,0.43756621,2607.3,2606.6,0.00373451]
[1646939117069,0.04814978,2607.2,2606.6,0.00373451]
[1646939117269,0.95939,2607.0,2606.6,0.00373451]
[1646939117467,0.05398601,2606.8,2606.6,0.00373451]
[1646939117668,0.05398601,2606.8,2606.4,1.0]
[1646939117914,1.91877,2607.1,2606.8,0.03000378]
[1646939118117,0.05355215,2607.0,2606.8,0.03000378]
[1646939118315,1.16671006,2606.9,2606.8,0.03000378]
[1646939119322,1.16671006,2606.9,2606.8,0.06365222]
[1646939119523,0.3858,2606.8,2606.6,0.00373404]
[1646939119723,0.04887921,2606.7,2606.6,0.00373404]
[1646939120220,0.93435324,2606.3,2606.2,25.0]
[1646939120626,1.32015324,2606.3,2606.2,25.0]
[1646939121224,24.0,2606.2,2605.5,1.0]
[1646939121428,0.43390559,2606.0,2604.7,0.07144788]
[1646939121669,0.43390559,2606.0,2604.5,0.07956514]
[1646939121670,0.9599426,2605.8,2604.5,0.07956514]
[1646939121861,0.23691866,2605.9,2604.6,1.2011479]
[1646939121862,0.96008,2605.5,2604.6,1.2011479]
[1646939122058,0.96008,2605.5,2604.7,13.23799232]
[1646939122361,0.96008,2605.5,2604.8,1.28877719]
[1646939122559,0.96008,2605.5,2604.9,1.27774368]
[1646939122766,0.96008,2605.5,2605.0,0.08885149]
[1646939123165,0.96008,2605.5,2605.2,1.0]
[1646939123567,1.09703629,2605.4,2604.7,0.07688126]
[1646939123767,0.96011,2605.2,2604.5,0.08500646]
[1646939123967,0.96011,2605.2,2604.4,1.96003]
[1646939124166,0.96011,2605.2,2604.5,1.28251218]
[1646939124371,0.96011,2605.2,2604.5,0.08088344]
[1646939124567,0.96011,2605.2,2604.6,1.20159132]
[1646939124773,0.04705226,2605.8,2604.7,1.27785058]
[1646939124968,0.00116253,2605.5,2604.8,8.60543819]
[1646939125266,0.0457683,2606.0,2604.9,1.0788554]
[1646939125267,1.91981,2605.6,2604.9,1.0788554]
[1646939126110,0.95981,2605.5,2604.9,1.0788554]
[1646939126510,0.95981,2605.5,2605.1,0.00387468]
[1646939126712,0.948166,2605.4,2605.1,0.00387468]
[1646939126914,2.868106,2605.4,2605.1,0.00387468]
[1646939127311,2.868106,2605.4,2604.9,0.0788554]
[1646939127711,2.868106,2605.4,2605.1,0.00387468]
[1646939127909,2.91613865,2605.4,2605.1,0.00387468]
[1646939128515,2.91613865,2605.4,2604.5,1.07198346]
[1646939128911,0.96,2605.2,2605.1,0.00374391]
[1646939129564,0.95995,2605.3,2605.1,0.07948315]
[1646939129761,0.95995,2605.3,2605.1,0.07573924]
[1646939131365,0.95995,2605.3,2605.1,0.07713165]
[1646939132169,0.95995,2605.3,2605.1,0.07573924]
[1646939132569,0.95995,2605.3,2605.1,0.07698651]
[1646939133015,2.02628992,2605.3,2605.1,0.07698651]
[1646939133418,2.02628992,2605.3,2605.1,0.07573924]
[1646939133820,2.02628992,2605.3,2605.1,0.07945723]
[1646939134222,0.02063685,2605.2,2605.1,0.06046428]
[1646939134619,0.02063685,2605.2,2605.1,0.05674629]
[1646939135020,0.02063685,2605.2,2605.1,0.06046428]
[1646939135822,0.02063685,2605.2,2605.1,0.05674629]
[1646939137893,0.30643052,2605.3,2605.1,0.05674629]
[1646939138491,37.80643052,2605.3,2604.7,0.08252788]
[1646939138696,7.84591,2605.2,2605.0,0.00372813]
[1646939138894,7.84591,2605.2,2604.2,1.0]
[1646939138895,1.3461238,2604.9,2604.2,1.0]
[1646939139094,1.11177308,2604.6,2604.2,1.0]
[1646939139894,3.5,2604.5,2604.2,1.0]
[1646939140101,5.46898617,2604.5,2603.7,7.33]
[1646939140295,4.50846617,2604.5,2603.7,7.33]
[1646939140514,4.50846617,2604.5,2603.8,0.09017886]
[1646939140711,4.84636,2604.5,2603.7,7.33]
[1646939140920,0.04474906,2604.3,2603.7,7.33]
[1646939141117,0.96043,2604.2,2603.7,7.33]
[1646939142321,1.92081,2604.2,2603.7,8.29036]
[1646939142519,0.96043,2604.2,2603.7,8.29036]
[1646939142721,0.96043,2604.2,2603.7,7.33]
[1646939143418,0.96041,2604.1,2603.8,0.00399149]
[1646939143619,0.96043,2604.2,2603.8,0.00399149]
[1646939143821,3.54659803,2604.6,2603.8,0.00399149]
[1646939143822,0.96029,2604.5,2603.8,0.00399149]
[1646939144018,0.96029,2604.5,2603.8,0.0921225]
[1646939144274,0.0436243,2604.9,2603.9,0.463]
[1646939144473,0.0436243,2604.9,2604.0,0.08207436]
[1646939144677,1.0037643,2604.9,2604.2,0.96013]
[1646939144872,0.96013,2604.8,2604.0,0.08606573]
[1646939145074,0.96013,2604.8,2604.0,1.92425137]
[1646939145277,0.03100257,2604.3,2604.1,0.07292206]
[1646939145873,0.03100257,2604.3,2604.2,1.0]
[1646939146475,0.03100257,2604.3,2604.0,0.96025]
[1646939147075,0.03100257,2604.3,2604.1,0.00399131]
[1646939147274,0.03100257,2604.3,2604.1,0.08493866]
[1646939147926,0.03100257,2604.3,2604.1,0.08094735]
[1646939148215,0.03100257,2604.3,2604.1,0.08481895]
[1646939149218,0.03100257,2604.3,2603.9,0.12075532]
[1646939149420,0.03100257,2604.3,2604.1,0.0038716]
[1646939149819,0.06821955,2604.2,2604.1,0.0038716]
[1646939150223,0.04975081,2605.0,2604.1,2.1395816]
[1646939150422,3.5,2605.1,2604.5,1.92031]
[1646939150619,0.04685432,2605.2,2604.5,1.92031]
[1646939150821,0.04685432,2605.2,2604.9,0.153587]
[1646939151023,0.49640543,2605.4,2604.7,0.96004]
[1646939151223,1.45645033,2605.4,2604.7,0.96004]
[1646939151421,1.45645033,2605.4,2604.8,0.96007]
[1646939151422,1.07065033,2605.4,2604.8,0.96007]
[1646939151671,0.06821955,2605.4,2604.9,0.07108766]
[1646939151867,0.06821955,2605.4,2605.0,0.07470154]
[1646939152067,0.06821955,2605.4,2605.1,0.08090578]
[1646939153078,0.06821955,2605.4,2605.2,0.95979]
[1646939153079,1.955e-05,2605.4,2605.2,0.95979]
[1646939153674,1.955e-05,2605.4,2605.2,1.95979]
[1646939154377,0.10330009,2605.8,2605.2,1.95979]
[1646939154674,0.10330009,2605.8,2605.2,1.9599]
[1646939154874,0.10330009,2605.8,2605.2,1.0]
[1646939154875,0.3858,2605.6,2605.2,1.0]
[1646939155074,1.2333951,2605.7,2605.2,1.0]
[1646939155075,1.6191951,2605.7,2605.2,1.0]
[1646939155427,1.6191951,2605.7,2605.0,1.91968]
[1646939155619,0.959958,2605.6,2605.2,1.0]
[1646939156717,0.959958,2605.6,2605.0,1.91968]
[1646939156919,0.959958,2605.6,2604.9,0.00338473]
[1646939156920,0.959958,2605.6,2604.9,0.09085854]
[1646939157529,2.02328589,2605.8,2605.0,0.95999]
[1646939157724,0.10330009,2605.8,2605.1,0.08186166]
[1646939157922,1.290014,2605.8,2605.0,0.88237166]
[1646939158128,0.05438432,2605.7,2605.0,0.83832166]
[1646939158725,0.05438432,2605.7,2605.1,1.17621324]
[1646939158924,1.01433962,2605.7,2605.1,1.17621324]
[1646939159164,1.01433962,2605.7,2605.2,0.95992]
[1646939159570,0.07880572,2605.5,2605.4,0.05957946]
[1646939160568,0.07880572,2605.5,2605.4,0.03058839]
[1646939160970,0.46460572,2605.5,2605.4,0.03058839]
[1646939161369,0.84598866,2605.5,2605.4,0.03058839]
[1646939161772,0.84598866,2605.5,2605.4,8.839e-05]
[1646939163020,0.46018866,2605.5,2605.4,8.839e-05]
[1646939164222,0.07880572,2605.5,2605.4,8.839e-05]
[1646939164824,0.46076465,2605.5,2605.4,8.839e-05]
[1646939165223,4.34656465,2605.5,2605.3,0.05658192]
[1646939165428,4.26775893,2605.4,2605.3,0.05658192]
[1646939165622,0.76775893,2605.4,2605.3,0.05658192]
[1646939166025,0.38195893,2605.4,2605.3,0.05658192]
[1646939166223,0.76775893,2605.4,2605.3,0.05658192]
[1646939166425,0.38195893,2605.4,2605.3,0.05658192]
[1646939168283,0.38195893,2605.4,2605.3,1.23939409]
[1646939168479,0.07880572,2605.5,2605.3,1.23939409]
[1646939168683,0.07880572,2605.5,2605.4,1.18281217]
[1646939168881,0.46099822,2605.5,2605.4,1.18281217]
[1646939169480,0.41706436,2605.5,2605.4,1.18281217]
[1646939169681,0.41706436,2605.5,2605.2,1.91953]
[1646939169881,0.3821925,2605.4,2605.3,1.18261144]
[1646939171117,0.38227855,2605.4,2605.3,1.18261144]
[1646939172720,0.38227855,2605.4,2605.2,1.18261144]
[1646939172917,1.50795055,2605.4,2605.3,1.18261144]
[1646939173118,1.50795055,2605.4,2605.1,0.96004]
[1646939173326,0.38227855,2605.3,2605.2,1.18286435]
[1646939173723,0.38227855,2605.4,2605.2,1.18286435]
[1646939174379,0.40132752,2605.4,2605.2,1.18286435]
[1646939174581,0.92700739,2605.2,2605.1,0.153564]
[1646939174784,1.25952871,2605.2,2605.1,0.153564]
[1646939175182,0.38227855,2605.2,2605.1,0.153564]
[1646939175383,0.33227855,2605.2,2605.1,0.153564]
[1646939176485,0.33227855,2605.2,2604.9,0.0034226]
[1646939176881,0.33227855,2605.2,2604.8,0.96013]
[1646939177082,0.33227855,2605.2,2604.9,0.00342259]
[1646939178015,0.33227855,2605.2,2604.8,0.96013]
[1646939178218,1.0820535,2605.1,2604.7,0.57905543]
[1646939178419,0.9601915,2605.1,2604.9,0.00342251]
[1646939179219,0.9601915,2605.1,2604.7,1.53923543]
[1646939179622,0.01904897,2605.4,2604.9,0.00342247]
[1646939179825,1.1812,2605.9,2605.0,0.95996]
[1646939179826,0.03104715,2605.2,2605.0,0.95996]
[1646939180622,0.05006168,2605.3,2605.2,0.01537625]
[1646939185076,0.00116253,2606.0,2605.3,40.0]
[1646939185278,0.70055432,2606.1,2605.4,5.43200644]
[1646939185279,0.00116253,2606.1,2605.4,5.43200644]
[1646939185528,0.00116253,2606.4,2605.8,0.3858]
[1646939185727,0.70055432,2606.6,2606.0,0.3858]
[1646939185728,0.00116253,2606.6,2606.0,0.3858]
[1646939185927,0.00342032,2606.7,2606.1,0.463]
[1646939186127,0.00342032,2606.7,2606.2,0.08825158]
[1646939186329,0.00342032,2606.7,2606.3,1.91871]
[1646939186930,0.70055432,2607.0,2606.3,1.91871]
[1646939187128,0.00342127,2606.7,2606.3,1.91871]
[1646939187327,0.00342127,2606.7,2606.3,3.83745]
[1646939187526,0.00342127,2606.7,2606.5,0.95936]
[1646939187728,0.70055432,2607.1,2606.5,0.95936]
[1646939188027,0.0034245,2606.7,2606.4,1.91873]